[Event "Late-Titled-Tuesday-Blitz-May-28-2024"]
[Site "Chess.com"]
[Date "2024.05.28"]
[Round "3"]
[White "luksona14"]
[Black "JanMur7"]
[Result "0-1"]
[WhiteElo "2685"]
[BlackElo "2292"]
[TimeControl "180+1"]
[EndTime "14:24:46 PDT"]
[Termination "JanMur7 won by resignation"]

1. e4 {[%clk 0:03:00.9]} 1... g6 {[%clk 0:03:00]} 2. d4 {[%clk 0:02:59.8]} 2...
Bg7 {[%clk 0:03:00.4]} 3. Nc3 {[%clk 0:02:57.8]} 3... c5 {[%clk 0:03:00.8]} 4.
d5 {[%clk 0:02:57.8]} 4... d6 {[%clk 0:03:00.1]} 5. Be2 {[%clk 0:02:57.2]} 5...
Nf6 {[%clk 0:03:00.7]} 6. Nf3 {[%clk 0:02:57.5]} 6... O-O {[%clk 0:03:01]} 7.
Nd2 {[%clk 0:02:57.1]} 7... a6 {[%clk 0:03:01.7]} 8. a4 {[%clk 0:02:56.7]} 8...
e6 {[%clk 0:02:59.9]} 9. O-O {[%clk 0:02:54.1]} 9... exd5 {[%clk 0:02:59.9]} 10.
exd5 {[%clk 0:02:55]} 10... Bf5 {[%clk 0:02:55.9]} 11. Nc4 {[%clk 0:02:55.2]}
11... h6 {[%clk 0:02:43.2]} 12. Bf4 {[%clk 0:02:53]} 12... Ne8 {[%clk
0:02:41.2]} 13. Bd3 {[%clk 0:02:50.9]} 13... Bxd3 {[%clk 0:02:40]} 14. Qxd3
{[%clk 0:02:51.8]} 14... g5 {[%clk 0:02:35.6]} 15. Bg3 {[%clk 0:02:51.5]} 15...
f5 {[%clk 0:02:35.7]} 16. f3 {[%clk 0:02:46.7]} 16... f4 {[%clk 0:02:35.2]} 17.
Bf2 {[%clk 0:02:46.8]} 17... Nd7 {[%clk 0:02:34.2]} 18. Ne4 {[%clk 0:02:44.7]}
18... Ne5 {[%clk 0:02:31.1]} 19. Nxe5 {[%clk 0:02:44.8]} 19... Bxe5 {[%clk
0:02:32]} 20. c3 {[%clk 0:02:45.5]} 20... Nf6 {[%clk 0:02:31.1]} 21. Rae1 {[%clk
0:02:42]} 21... Nxe4 {[%clk 0:02:30]} 22. Qxe4 {[%clk 0:02:40.3]} 22... Qf6
{[%clk 0:02:30.5]} 23. Bxc5 {[%clk 0:02:39.2]} 23... Bxc3 {[%clk 0:02:24.3]} 24.
bxc3 {[%clk 0:02:36.6]} 24... dxc5 {[%clk 0:02:23.1]} 25. c4 {[%clk 0:02:32.9]}
25... Rae8 {[%clk 0:02:10.7]} 26. Qxe8 {[%clk 0:02:32.6]} 26... Rxe8 {[%clk
0:02:10.7]} 27. Rxe8+ {[%clk 0:02:33.5]} 27... Kf7 {[%clk 0:02:11.1]} 28. Rfe1
{[%clk 0:02:33.4]} 28... Qd4+ {[%clk 0:02:10.4]} 29. Kh1 {[%clk 0:02:33.5]}
29... Qxc4 {[%clk 0:02:10.6]} 30. d6 {[%clk 0:02:33.6]} 30... Qxa4 {[%clk
0:02:07.4]} 31. h3 {[%clk 0:02:29.3]} 31... Qxe8 {[%clk 0:02:04.2]} 0-1

[Event "Late-Titled-Tuesday-Blitz-May-28-2024"]
[Site "Chess.com"]
[Date "2024.05.28"]
[Round "3"]
[White "jcmesafischer"]
[Black "whiteglovethief"]
[Result "1-0"]
[WhiteElo "2356"]
[BlackElo "2532"]
[TimeControl "180+1"]
[EndTime "14:24:50 PDT"]
[Termination "jcmesafischer won by resignation"]

1. e4 {[%clk 0:02:56.2]} 1... e6 {[%clk 0:02:59.8]} 2. Qe2 {[%clk 0:02:55]} 2...
d5 {[%clk 0:03:00.6]} 3. exd5 {[%clk 0:02:55.9]} 3... Nf6 {[%clk 0:02:59.7]} 4.
Nc3 {[%clk 0:02:46.3]} 4... Bd6 {[%clk 0:02:55.8]} 5. dxe6 {[%clk 0:02:46.2]}
5... Bxe6 {[%clk 0:02:54.9]} 6. Qb5+ {[%clk 0:02:46.7]} 6... Nc6 {[%clk
0:02:53.9]} 7. Qxb7 {[%clk 0:02:44.6]} 7... Nb4 {[%clk 0:02:53.8]} 8. Qb5+
{[%clk 0:02:35.6]} 8... c6 {[%clk 0:02:42.9]} 9. Qa4 {[%clk 0:02:32.6]} 9... O-O
{[%clk 0:02:42.6]} 10. a3 {[%clk 0:02:30]} 10... Re8 {[%clk 0:02:42.7]} 11. Be2
{[%clk 0:02:23.4]} 11... Nbd5 {[%clk 0:02:37.9]} 12. Nxd5 {[%clk 0:02:21.6]}
12... Bxd5 {[%clk 0:02:36.5]} 13. Kf1 {[%clk 0:02:17.1]} 13... Bc5 {[%clk
0:02:29.8]} 14. d3 {[%clk 0:01:48.9]} 14... Qb6 {[%clk 0:02:26.7]} 15. Nh3
{[%clk 0:01:38.8]} 15... Rxe2 {[%clk 0:02:24.6]} 16. Kxe2 {[%clk 0:01:37.2]}
16... Bxg2 {[%clk 0:02:25.2]} 17. Rg1 {[%clk 0:01:31.6]} 17... Bxh3 {[%clk
0:02:23.6]} 18. Qh4 {[%clk 0:01:30.3]} 18... Re8+ {[%clk 0:02:22.7]} 19. Kd1
{[%clk 0:01:28.1]} 19... Bxf2 {[%clk 0:02:21.3]} 20. Rxg7+ {[%clk 0:01:27.2]}
20... Kxg7 {[%clk 0:02:20.2]} 21. Bh6+ {[%clk 0:01:26.9]} 21... Kg8 {[%clk
0:02:18.2]} 22. Qg5+ {[%clk 0:01:26.5]} 1-0

[Event "Late-Titled-Tuesday-Blitz-May-28-2024"]
[Site "Chess.com"]
[Date "2024.05.28"]
[Round "3"]
[White "Quattroporte300"]
[Black "mindprogress732"]
[Result "1-0"]
[WhiteElo "2398"]
[BlackElo "2140"]
[TimeControl "180+1"]
[EndTime "14:24:55 PDT"]
[Termination "Quattroporte300 won by resignation"]

1. e4 {[%clk 0:02:56.9]} 1... e6 {[%clk 0:02:31.7]} 2. b3 {[%clk 0:02:56.2]}
2... e5 {[%clk 0:02:30.3]} 3. Bb2 {[%clk 0:02:56.2]} 3... Nc6 {[%clk 0:02:31.2]}
4. Nf3 {[%clk 0:02:54.8]} 4... d6 {[%clk 0:02:31.7]} 5. d4 {[%clk 0:02:52]} 5...
Bg4 {[%clk 0:02:31.7]} 6. d5 {[%clk 0:02:45.6]} 6... Nce7 {[%clk 0:02:29.6]} 7.
h3 {[%clk 0:02:44.6]} 7... Bh5 {[%clk 0:02:29]} 8. Nc3 {[%clk 0:02:30.2]} 8...
Qd7 {[%clk 0:02:29]} 9. Qd2 {[%clk 0:02:18.1]} 9... Bxf3 {[%clk 0:02:23.8]} 10.
gxf3 {[%clk 0:02:18]} 10... Ng6 {[%clk 0:02:24.7]} 11. O-O-O {[%clk 0:02:11.9]}
11... Nf6 {[%clk 0:02:24.7]} 12. h4 {[%clk 0:02:07.1]} 12... Nh5 {[%clk
0:02:21.4]} 13. Bh3 {[%clk 0:01:59.9]} 13... Qe7 {[%clk 0:02:21.6]} 14. Bf5
{[%clk 0:01:52.7]} 14... Ngf4 {[%clk 0:02:19.2]} 15. Ne2 {[%clk 0:01:50.4]}
15... g6 {[%clk 0:02:16.7]} 16. Bg4 {[%clk 0:01:38.3]} 16... Nxe2+ {[%clk
0:02:16.5]} 17. Qxe2 {[%clk 0:01:37.6]} 17... Nf4 {[%clk 0:02:17.4]} 18. Qb5+
{[%clk 0:01:35.8]} 18... Kd8 {[%clk 0:02:00.1]} 19. Qxb7 {[%clk 0:01:36]} 1-0

[Event "Late-Titled-Tuesday-Blitz-May-28-2024"]
[Site "Chess.com"]
[Date "2024.05.28"]
[Round "3"]
[White "Lennis93"]
[Black "colegiodemadrid"]
[Result "1-0"]
[WhiteElo "2771"]
[BlackElo "2504"]
[TimeControl "180+1"]
[EndTime "14:25:01 PDT"]
[Termination "Lennis93 won by resignation"]

1. d4 {[%clk 0:03:00.9]} 1... Nf6 {[%clk 0:02:58.9]} 2. Nf3 {[%clk 0:03:01.3]}
2... d5 {[%clk 0:02:57.7]} 3. c4 {[%clk 0:03:01.6]} 3... c6 {[%clk 0:02:58.2]}
4. Qc2 {[%clk 0:03:01.1]} 4... a6 {[%clk 0:02:58.7]} 5. e3 {[%clk 0:03:00.2]}
5... b5 {[%clk 0:02:58.3]} 6. b3 {[%clk 0:02:57.8]} 6... bxc4 {[%clk 0:02:57]}
7. bxc4 {[%clk 0:02:57.2]} 7... Bg4 {[%clk 0:02:53.5]} 8. Ne5 {[%clk 0:02:56.5]}
8... Be6 {[%clk 0:02:41.9]} 9. Nc3 {[%clk 0:02:50.8]} 9... g6 {[%clk 0:02:41.4]}
10. Be2 {[%clk 0:02:47.3]} 10... Bg7 {[%clk 0:02:40.9]} 11. O-O {[%clk
0:02:46.9]} 11... O-O {[%clk 0:02:40.9]} 12. Rd1 {[%clk 0:02:46.2]} 12... Bf5
{[%clk 0:02:28.4]} 13. Qa4 {[%clk 0:02:44.7]} 13... Qc8 {[%clk 0:02:17]} 14. Ba3
{[%clk 0:02:43.1]} 14... Re8 {[%clk 0:02:16.6]} 15. Rac1 {[%clk 0:02:38.9]}
15... dxc4 {[%clk 0:01:59.9]} 16. Bxc4 {[%clk 0:02:37.3]} 16... Be6 {[%clk
0:02:00.3]} 17. Qb3 {[%clk 0:02:27]} 17... Bxc4 {[%clk 0:01:56.2]} 18. Qxc4
{[%clk 0:02:27.9]} 18... e6 {[%clk 0:01:55.6]} 19. Na4 {[%clk 0:02:26.5]} 19...
Qd8 {[%clk 0:01:48.8]} 20. Qb3 {[%clk 0:02:17.7]} 20... Ra7 {[%clk 0:01:39]} 21.
Bc5 {[%clk 0:02:15.5]} 21... Ra8 {[%clk 0:01:35.7]} 22. Qb7 {[%clk 0:02:10.7]}
22... Nbd7 {[%clk 0:01:31.9]} 23. Nxc6 {[%clk 0:02:10.1]} 23... Qc8 {[%clk
0:01:28.9]} 24. Qxc8 {[%clk 0:02:08.8]} 1-0

[Event "Late-Titled-Tuesday-Blitz-May-28-2024"]
[Site "Chess.com"]
[Date "2024.05.28"]
[Round "3"]
[White "gxbg2000"]
[Black "GMthekingindian"]
[Result "0-1"]
[WhiteElo "1989"]
[BlackElo "2338"]
[TimeControl "180+1"]
[EndTime "14:25:03 PDT"]
[Termination "GMthekingindian won by resignation"]

1. e4 {[%clk 0:02:54.7]} 1... c5 {[%clk 0:02:43.6]} 2. Nf3 {[%clk 0:02:50.3]}
2... e6 {[%clk 0:02:43.6]} 3. d4 {[%clk 0:02:49.3]} 3... cxd4 {[%clk 0:02:44.5]}
4. Nxd4 {[%clk 0:02:48.7]} 4... Nf6 {[%clk 0:02:45]} 5. Nc3 {[%clk 0:02:48.2]}
5... Nc6 {[%clk 0:02:45.2]} 6. Ndb5 {[%clk 0:02:38.9]} 6... Bb4 {[%clk
0:02:44.2]} 7. Bd3 {[%clk 0:02:31.8]} 7... a6 {[%clk 0:02:34.1]} 8. Na3 {[%clk
0:02:23.6]} 8... d5 {[%clk 0:02:07.4]} 9. exd5 {[%clk 0:02:20]} 9... exd5 {[%clk
0:02:05.6]} 10. Bd2 {[%clk 0:02:17.5]} 10... O-O {[%clk 0:02:04.1]} 11. Nab1
{[%clk 0:02:16.9]} 11... Re8+ {[%clk 0:02:03.1]} 12. Kf1 {[%clk 0:02:11.8]}
12... Bg4 {[%clk 0:01:59.3]} 13. f3 {[%clk 0:02:10.6]} 13... Bh5 {[%clk
0:01:52.8]} 14. h4 {[%clk 0:02:07.7]} 14... d4 {[%clk 0:01:26.8]} 15. Ne2 {[%clk
0:02:04.1]} 15... Nd5 {[%clk 0:01:26.5]} 16. Bxb4 {[%clk 0:02:02.4]} 16... Ne3+
{[%clk 0:01:23.8]} 17. Kf2 {[%clk 0:02:00.5]} 17... Nxd1+ {[%clk 0:01:21.4]} 18.
Rxd1 {[%clk 0:02:01.4]} 18... Nxb4 {[%clk 0:01:20.6]} 0-1

[Event "Late-Titled-Tuesday-Blitz-May-28-2024"]
[Site "Chess.com"]
[Date "2024.05.28"]
[Round "3"]
[White "Alex_Sahakyan2006"]
[Black "jinxy2009"]
[Result "1-0"]
[WhiteElo "2786"]
[BlackElo "2293"]
[TimeControl "180+1"]
[EndTime "14:25:22 PDT"]
[Termination "Alex_Sahakyan2006 won by resignation"]

1. e4 {[%clk 0:03:00.9]} 1... c6 {[%clk 0:02:58.7]} 2. d4 {[%clk 0:02:56.8]}
2... d5 {[%clk 0:02:59.6]} 3. exd5 {[%clk 0:02:57.4]} 3... cxd5 {[%clk
0:03:00.5]} 4. Bd3 {[%clk 0:02:57.7]} 4... Nc6 {[%clk 0:02:58.7]} 5. c3 {[%clk
0:02:58.1]} 5... Nf6 {[%clk 0:02:58.6]} 6. Bf4 {[%clk 0:02:58.4]} 6... Bg4
{[%clk 0:02:58.8]} 7. Qb3 {[%clk 0:02:56.7]} 7... e5 {[%clk 0:02:58.3]} 8. dxe5
{[%clk 0:02:54.3]} 8... Nh5 {[%clk 0:02:58]} 9. Bg3 {[%clk 0:02:51.7]} 9... Nxg3
{[%clk 0:02:48.7]} 10. hxg3 {[%clk 0:02:52.6]} 10... Nxe5 {[%clk 0:02:49.1]} 11.
Bb5+ {[%clk 0:02:52.2]} 11... Bd7 {[%clk 0:02:46.1]} 12. Qxd5 {[%clk 0:02:47.1]}
12... Bxb5 {[%clk 0:02:40.7]} 13. Qxb5+ {[%clk 0:02:46.9]} 13... Nc6 {[%clk
0:02:38.3]} 14. Qxb7 {[%clk 0:02:47]} 14... Rc8 {[%clk 0:02:36.8]} 15. Nf3
{[%clk 0:02:47.1]} 15... Bc5 {[%clk 0:02:35.4]} 16. O-O {[%clk 0:02:40.9]} 16...
O-O {[%clk 0:02:35]} 17. Qb3 {[%clk 0:02:40.3]} 17... Rb8 {[%clk 0:02:34.5]} 18.
Qc2 {[%clk 0:02:40]} 18... Qf6 {[%clk 0:02:35]} 19. Nbd2 {[%clk 0:02:38.6]}
19... Bb6 {[%clk 0:02:20.5]} 20. Rae1 {[%clk 0:02:35.6]} 20... Rfd8 {[%clk
0:02:18.3]} 21. Nc4 {[%clk 0:02:33.9]} 21... g6 {[%clk 0:02:14.7]} 22. Nxb6
{[%clk 0:02:32.2]} 22... Rxb6 {[%clk 0:02:15.6]} 23. Rd1 {[%clk 0:02:28.1]}
23... Rdb8 {[%clk 0:02:14.7]} 24. b3 {[%clk 0:02:27.1]} 24... Ne5 {[%clk
0:02:12.1]} 25. Nxe5 {[%clk 0:02:26.5]} 25... Qxe5 {[%clk 0:02:13]} 26. Rfe1
{[%clk 0:02:26.4]} 26... Qf6 {[%clk 0:02:12.7]} 27. c4 {[%clk 0:02:26.1]} 27...
h5 {[%clk 0:02:10.9]} 28. Qe4 {[%clk 0:02:24.8]} 28... a5 {[%clk 0:02:07.1]} 29.
Qe5 {[%clk 0:02:12.1]} 29... Qxe5 {[%clk 0:02:05.1]} 30. Rxe5 {[%clk 0:02:13]}
30... a4 {[%clk 0:02:05.5]} 31. bxa4 {[%clk 0:01:44]} 31... Rb2 {[%clk 0:02:05]}
32. Rb5 {[%clk 0:01:40.1]} 32... R8xb5 {[%clk 0:01:57.9]} 33. axb5 {[%clk
0:01:37.6]} 33... Rxa2 {[%clk 0:01:58]} 34. b6 {[%clk 0:01:37.8]} 1-0

[Event "Late-Titled-Tuesday-Blitz-May-28-2024"]
[Site "Chess.com"]
[Date "2024.05.28"]
[Round "3"]
[White "Blitz"]
[Black "eljanov"]
[Result "0-1"]
[WhiteElo "2517"]
[BlackElo "2888"]
[TimeControl "180+1"]
[EndTime "14:25:26 PDT"]
[Termination "eljanov won by resignation"]

1. d4 {[%clk 0:03:00.9]} 1... d5 {[%clk 0:02:59.8]} 2. Nc3 {[%clk 0:03:00.8]}
2... Nf6 {[%clk 0:02:59.3]} 3. Bf4 {[%clk 0:03:01.1]} 3... c6 {[%clk 0:02:44.4]}
4. e3 {[%clk 0:02:59.9]} 4... Bf5 {[%clk 0:02:43.5]} 5. Nf3 {[%clk 0:02:57.7]}
5... e6 {[%clk 0:02:41.3]} 6. Ne5 {[%clk 0:02:54.5]} 6... h5 {[%clk 0:02:28.9]}
7. Bd3 {[%clk 0:02:54.3]} 7... Bxd3 {[%clk 0:02:24.9]} 8. cxd3 {[%clk
0:02:55.2]} 8... Nbd7 {[%clk 0:02:17]} 9. O-O {[%clk 0:02:44.7]} 9... Nxe5
{[%clk 0:02:10.3]} 10. Bxe5 {[%clk 0:02:17.9]} 10... Nd7 {[%clk 0:02:09.1]} 11.
Rc1 {[%clk 0:01:51.6]} 11... f6 {[%clk 0:02:03.9]} 12. Bf4 {[%clk 0:01:45.5]}
12... g5 {[%clk 0:01:53.8]} 13. Bg3 {[%clk 0:01:40]} 13... h4 {[%clk 0:01:54]}
14. Qg4 {[%clk 0:01:40.7]} 14... f5 {[%clk 0:01:53.9]} 15. Qe2 {[%clk
0:01:37.2]} 15... hxg3 {[%clk 0:01:50.8]} 16. fxg3 {[%clk 0:01:38.1]} 16... Nf6
{[%clk 0:01:41.3]} 17. Rcd1 {[%clk 0:01:29.5]} 17... Qb6 {[%clk 0:01:30]} 0-1

[Event "Late-Titled-Tuesday-Blitz-May-28-2024"]
[Site "Chess.com"]
[Date "2024.05.28"]
[Round "3"]
[White "Jospem"]
[Black "RuperezA"]
[Result "1-0"]
[WhiteElo "3019"]
[BlackElo "2699"]
[TimeControl "180+1"]
[EndTime "14:25:36 PDT"]
[Termination "Jospem won by checkmate"]

1. e4 {[%clk 0:03:00.9]} 1... e6 {[%clk 0:02:53.2]} 2. d4 {[%clk 0:03:01.3]}
2... d5 {[%clk 0:02:54.1]} 3. Nd2 {[%clk 0:03:01.9]} 3... Nf6 {[%clk 0:02:53.2]}
4. e5 {[%clk 0:03:01.6]} 4... Nfd7 {[%clk 0:02:53.9]} 5. c3 {[%clk 0:03:02.3]}
5... c5 {[%clk 0:02:54.8]} 6. Ngf3 {[%clk 0:03:02.6]} 6... Nc6 {[%clk
0:02:53.6]} 7. Bd3 {[%clk 0:03:03.1]} 7... Be7 {[%clk 0:02:46.9]} 8. O-O {[%clk
0:03:02.8]} 8... g5 {[%clk 0:02:47.2]} 9. dxc5 {[%clk 0:03:02.8]} 9... Ndxe5
{[%clk 0:02:43.7]} 10. Nxe5 {[%clk 0:03:03.7]} 10... Nxe5 {[%clk 0:02:44.4]} 11.
Nb3 {[%clk 0:03:04.5]} 11... Nxd3 {[%clk 0:02:40.8]} 12. Qxd3 {[%clk 0:03:05.4]}
12... f6 {[%clk 0:02:41.5]} 13. f4 {[%clk 0:03:05.9]} 13... gxf4 {[%clk
0:02:38.3]} 14. Bxf4 {[%clk 0:03:06.8]} 14... e5 {[%clk 0:02:38.2]} 15. Qg3
{[%clk 0:03:07.1]} 15... Qc7 {[%clk 0:02:16.9]} 16. Rae1 {[%clk 0:02:51.1]}
16... Be6 {[%clk 0:02:01.2]} 17. Bxe5 {[%clk 0:02:29.3]} 17... fxe5 {[%clk
0:02:02.1]} 18. Qxe5 {[%clk 0:02:29.9]} 18... Qxe5 {[%clk 0:01:35.2]} 19. Rxe5
{[%clk 0:02:30.8]} 19... Kd7 {[%clk 0:01:35.8]} 20. Rfe1 {[%clk 0:02:31.1]}
20... Bh4 {[%clk 0:01:36.7]} 21. g3 {[%clk 0:02:24.2]} 21... Bh3 {[%clk
0:01:22.5]} 22. Rxd5+ {[%clk 0:02:21.4]} 22... Kc7 {[%clk 0:01:22.1]} 23. Rh5
{[%clk 0:02:16.6]} 23... Bxg3 {[%clk 0:01:04.1]} 24. hxg3 {[%clk 0:02:17.5]}
24... Bg4 {[%clk 0:00:56.5]} 25. Rg5 {[%clk 0:02:17.9]} 25... Rhg8 {[%clk
0:00:51.5]} 26. Re7+ {[%clk 0:02:14.3]} 26... Kc6 {[%clk 0:00:50.1]} 27. Nd4#
{[%clk 0:02:14.3]} 1-0

[Event "Late-Titled-Tuesday-Blitz-May-28-2024"]
[Site "Chess.com"]
[Date "2024.05.28"]
[Round "3"]
[White "jcibarra"]
[Black "Stanbad1"]
[Result "1-0"]
[WhiteElo "2911"]
[BlackElo "2666"]
[TimeControl "180+1"]
[EndTime "14:25:47 PDT"]
[Termination "jcibarra won by resignation"]

1. e4 {[%clk 0:02:59.2]} 1... e6 {[%clk 0:03:00.4]} 2. d4 {[%clk 0:02:57.9]}
2... d5 {[%clk 0:03:00.4]} 3. Nc3 {[%clk 0:02:58.4]} 3... Nf6 {[%clk 0:03:00]}
4. Bg5 {[%clk 0:02:57.8]} 4... Bb4 {[%clk 0:03:00]} 5. e5 {[%clk 0:02:53.8]}
5... h6 {[%clk 0:02:58.3]} 6. Bf4 {[%clk 0:02:40.9]} 6... Ne4 {[%clk 0:02:51.5]}
7. Ne2 {[%clk 0:02:40.6]} 7... c5 {[%clk 0:02:49.5]} 8. a3 {[%clk 0:02:39.6]}
8... Bxc3+ {[%clk 0:02:47.2]} 9. Nxc3 {[%clk 0:02:38.7]} 9... Nxc3 {[%clk
0:02:45.6]} 10. bxc3 {[%clk 0:02:39.2]} 10... cxd4 {[%clk 0:02:46.2]} 11. cxd4
{[%clk 0:02:38.5]} 11... Nc6 {[%clk 0:02:46.8]} 12. c3 {[%clk 0:02:26.4]} 12...
Bd7 {[%clk 0:02:45.7]} 13. Qg4 {[%clk 0:02:25.6]} 13... g5 {[%clk 0:02:44.6]}
14. Bd2 {[%clk 0:02:25]} 14... Rc8 {[%clk 0:02:44.3]} 15. h4 {[%clk 0:02:24.4]}
15... Rg8 {[%clk 0:02:41.4]} 16. Qh5 {[%clk 0:02:00.7]} 16... gxh4 {[%clk
0:02:32.7]} 17. Qxh6 {[%clk 0:01:56.8]} 17... Na5 {[%clk 0:02:32.5]} 18. Qh7
{[%clk 0:01:53]} 18... Rg6 {[%clk 0:02:22.5]} 19. Qh8+ {[%clk 0:01:48.1]} 19...
Ke7 {[%clk 0:02:22.5]} 20. Qxh4+ {[%clk 0:01:48.8]} 20... Ke8 {[%clk 0:02:22.7]}
21. Qf4 {[%clk 0:01:13.4]} 21... Ke7 {[%clk 0:02:15.2]} 22. Qg5+ {[%clk
0:01:00.4]} 22... Rxg5 {[%clk 0:02:06]} 23. Bxg5+ {[%clk 0:00:58.2]} 23... f6
{[%clk 0:02:06.6]} 24. Bxf6+ {[%clk 0:00:58]} 24... Kf7 {[%clk 0:02:07.3]} 25.
Rh7+ {[%clk 0:00:51.6]} 25... Kg8 {[%clk 0:02:04.7]} 26. Rh8+ {[%clk 0:00:49.5]}
1-0

[Event "Late-Titled-Tuesday-Blitz-May-28-2024"]
[Site "Chess.com"]
[Date "2024.05.28"]
[Round "3"]
[White "nihalsarin"]
[Black "AradNazari"]
[Result "1-0"]
[WhiteElo "3252"]
[BlackElo "2787"]
[TimeControl "180+1"]
[EndTime "14:25:58 PDT"]
[Termination "nihalsarin won by resignation"]

1. d4 {[%clk 0:02:56.5]} 1... Nf6 {[%clk 0:02:55.7]} 2. c4 {[%clk 0:02:56.4]}
2... g6 {[%clk 0:02:56.3]} 3. Nf3 {[%clk 0:02:55.3]} 3... Bg7 {[%clk 0:02:50.5]}
4. Nc3 {[%clk 0:02:55.8]} 4... d5 {[%clk 0:02:50.4]} 5. cxd5 {[%clk 0:02:53]}
5... Nxd5 {[%clk 0:02:50.6]} 6. Bd2 {[%clk 0:02:53.7]} 6... Nb6 {[%clk
0:02:50.4]} 7. e3 {[%clk 0:02:51.5]} 7... O-O {[%clk 0:02:40.3]} 8. h3 {[%clk
0:02:51.8]} 8... c5 {[%clk 0:02:20.9]} 9. dxc5 {[%clk 0:02:50.2]} 9... N6d7
{[%clk 0:02:17]} 10. Na4 {[%clk 0:02:44.9]} 10... e5 {[%clk 0:01:44.7]} 11. Qc2
{[%clk 0:02:43]} 11... Nc6 {[%clk 0:01:38.5]} 12. Rd1 {[%clk 0:02:38.7]} 12...
Qe7 {[%clk 0:01:37.9]} 13. Bd3 {[%clk 0:02:33.4]} 13... Re8 {[%clk 0:01:19]} 14.
e4 {[%clk 0:02:28.6]} 14... Nf8 {[%clk 0:00:58.6]} 15. O-O {[%clk 0:02:24.5]}
15... Ne6 {[%clk 0:00:57.6]} 16. Nc3 {[%clk 0:02:13.9]} 16... Qxc5 {[%clk
0:00:52.7]} 17. Nd5 {[%clk 0:02:14]} 17... Qxc2 {[%clk 0:00:44.1]} 18. Bxc2
{[%clk 0:02:14.9]} 18... b6 {[%clk 0:00:39.9]} 19. Ba4 {[%clk 0:02:13.5]} 19...
Bb7 {[%clk 0:00:40]} 20. Rc1 {[%clk 0:02:13.8]} 20... Rac8 {[%clk 0:00:37.3]}
21. Be3 {[%clk 0:02:12.4]} 21... Bf8 {[%clk 0:00:27]} 22. Nf6+ {[%clk 0:02:12]}
22... Kg7 {[%clk 0:00:25.5]} 23. Nxe8+ {[%clk 0:02:12.9]} 1-0

[Event "Late-Titled-Tuesday-Blitz-May-28-2024"]
[Site "Chess.com"]
[Date "2024.05.28"]
[Round "3"]
[White "Dzidzik2203"]
[Black "djano"]
[Result "0-1"]
[WhiteElo "2438"]
[BlackElo "2603"]
[TimeControl "180+1"]
[EndTime "14:26:04 PDT"]
[Termination "djano won by resignation"]

1. b3 {[%clk 0:03:00.9]} 1... c5 {[%clk 0:02:59]} 2. Bb2 {[%clk 0:02:59.3]} 2...
d6 {[%clk 0:02:59.2]} 3. Nf3 {[%clk 0:02:54.7]} 3... e5 {[%clk 0:02:59.4]} 4. e3
{[%clk 0:02:53.2]} 4... e4 {[%clk 0:02:56.3]} 5. Ng1 {[%clk 0:02:52.5]} 5... Nc6
{[%clk 0:02:55]} 6. d3 {[%clk 0:02:51.8]} 6... Nf6 {[%clk 0:02:51.7]} 7. Nd2
{[%clk 0:02:48.3]} 7... exd3 {[%clk 0:02:46.1]} 8. cxd3 {[%clk 0:02:49.2]} 8...
Be7 {[%clk 0:02:42.5]} 9. Ngf3 {[%clk 0:02:48.5]} 9... O-O {[%clk 0:02:42.1]}
10. Be2 {[%clk 0:02:48.4]} 10... Nd5 {[%clk 0:02:35.5]} 11. a3 {[%clk
0:02:45.6]} 11... Bf6 {[%clk 0:02:35.6]} 12. Qc2 {[%clk 0:02:43.5]} 12... Re8
{[%clk 0:02:29.8]} 13. O-O {[%clk 0:02:35.8]} 13... Bg4 {[%clk 0:02:08.3]} 14.
Rac1 {[%clk 0:02:30.5]} 14... Nf4 {[%clk 0:02:00.3]} 15. Ne4 {[%clk 0:02:17.9]}
15... Bxb2 {[%clk 0:01:53.7]} 16. Qxb2 {[%clk 0:02:15.8]} 16... Bxf3 {[%clk
0:01:39]} 17. gxf3 {[%clk 0:02:04.6]} 17... Rxe4 {[%clk 0:01:38.7]} 18. exf4
{[%clk 0:01:55.6]} 18... Rxf4 {[%clk 0:01:38.8]} 19. Kh1 {[%clk 0:01:54.7]}
19... Nd4 {[%clk 0:01:38.6]} 20. Rg1 {[%clk 0:01:54.4]} 20... Qf6 {[%clk
0:01:29.3]} 21. Rg3 {[%clk 0:01:41.4]} 21... Re8 {[%clk 0:01:24.9]} 22. Bf1
{[%clk 0:01:34.6]} 22... Rxf3 {[%clk 0:01:22.2]} 23. Rxf3 {[%clk 0:01:24.2]}
23... Qxf3+ {[%clk 0:01:23.1]} 24. Bg2 {[%clk 0:01:24.7]} 24... Qxd3 {[%clk
0:01:23.1]} 0-1